[Event "Early-Titled-Tuesday-Blitz-January-30-2024"]
[Site "Chess.com"]
[Date "2024.01.30"]
[Round "4"]
[White "Kostya0705"]
[Black "bubeliang"]
[Result "1-0"]
[WhiteElo "2580"]
[BlackElo "2760"]
[TimeControl "180+1"]
[EndTime "8:41:11 PST"]
[Termination "Kostya0705 won on time"]

1. e4 {[%clk 0:02:57.3]} 1... c6 {[%clk 0:02:55.7]} 2. d4 {[%clk 0:02:57.2]}
2... d5 {[%clk 0:02:56.3]} 3. e5 {[%clk 0:02:58.1]} 3... c5 {[%clk 0:02:56.7]}
4. dxc5 {[%clk 0:02:59]} 4... e6 {[%clk 0:02:57.1]} 5. Nf3 {[%clk 0:02:59.6]}
5... Bxc5 {[%clk 0:02:57.1]} 6. Bd3 {[%clk 0:03:00.3]} 6... Ne7 {[%clk
0:02:57.3]} 7. a3 {[%clk 0:03:01.2]} 7... Ng6 {[%clk 0:02:56.4]} 8. O-O {[%clk
0:03:02.1]} 8... Nc6 {[%clk 0:02:56.6]} 9. b4 {[%clk 0:03:01.8]} 9... Bb6 {[%clk
0:02:56.2]} 10. Re1 {[%clk 0:03:01.4]} 10... O-O {[%clk 0:02:55.8]} 11. Bb2
{[%clk 0:03:01.6]} 11... Nf4 {[%clk 0:02:40]} 12. Bf1 {[%clk 0:03:00.8]} 12...
a5 {[%clk 0:02:36.3]} 13. b5 {[%clk 0:03:00.5]} 13... Ne7 {[%clk 0:02:36]} 14.
g3 {[%clk 0:03:00.3]} 14... Nfg6 {[%clk 0:02:36.1]} 15. Nbd2 {[%clk 0:02:52.1]}
15... Nf5 {[%clk 0:02:31.3]} 16. a4 {[%clk 0:02:51]} 16... h5 {[%clk 0:02:27.5]}
17. c4 {[%clk 0:02:50.3]} 17... Bc5 {[%clk 0:01:26.6]} 18. Rc1 {[%clk
0:02:19.1]} 18... b6 {[%clk 0:01:25.2]} 19. cxd5 {[%clk 0:02:16.1]} 19... exd5
{[%clk 0:01:13.6]} 20. Bd3 {[%clk 0:02:13.9]} 20... h4 {[%clk 0:00:57.5]} 21.
Nb3 {[%clk 0:02:11.9]} 21... Bb4 {[%clk 0:00:46.3]} 22. Re2 {[%clk 0:02:11.3]}
22... d4 {[%clk 0:00:45]} 23. Nbxd4 {[%clk 0:02:09.3]} 23... Nxd4 {[%clk
0:00:44.3]} 24. Nxd4 {[%clk 0:02:06.4]} 24... Bb7 {[%clk 0:00:42.6]} 25. Nc6
{[%clk 0:02:04.6]} 25... Bxc6 {[%clk 0:00:36.8]} 26. bxc6 {[%clk 0:02:05.5]}
26... Rc8 {[%clk 0:00:31.7]} 27. Qb3 {[%clk 0:01:57.2]} 27... Bc5 {[%clk
0:00:23]} 28. Bxg6 {[%clk 0:01:56.2]} 28... Qg5 {[%clk 0:00:20.5]} 29. Be4
{[%clk 0:01:54]} 29... hxg3 {[%clk 0:00:20.6]} 30. hxg3 {[%clk 0:01:54.7]} 30...
Rcd8 {[%clk 0:00:21.1]} 31. Kg2 {[%clk 0:01:44.4]} 31... Rd2 {[%clk 0:00:19.2]}
32. Rxd2 {[%clk 0:01:37.9]} 32... Qxd2 {[%clk 0:00:20.1]} 33. Rc2 {[%clk
0:01:38.1]} 33... Qe1 {[%clk 0:00:20.6]} 34. Qc4 {[%clk 0:01:24.3]} 34... Rc8
{[%clk 0:00:15.1]} 35. Bc3 {[%clk 0:01:23.3]} 35... Qd1 {[%clk 0:00:12.6]} 36.
Rd2 {[%clk 0:01:22.4]} 36... Qc1 {[%clk 0:00:11.6]} 37. Qa6 {[%clk 0:01:17.5]}
37... Rf8 {[%clk 0:00:10.6]} 38. Qd3 {[%clk 0:01:11.7]} 38... Bb4 {[%clk
0:00:09.5]} 39. Bxb4 {[%clk 0:01:10.7]} 39... axb4 {[%clk 0:00:10.4]} 40. Qd8
{[%clk 0:01:06.6]} 40... Qc4 {[%clk 0:00:05.6]} 41. Qd4 {[%clk 0:00:59.2]} 41...
Qc1 {[%clk 0:00:01.8]} 42. Qxb4 {[%clk 0:00:57.9]} 42... g6 {[%clk 0:00:02.4]}
43. Rc2 {[%clk 0:00:55.3]} 43... Qd1 {[%clk 0:00:01.9]} 44. c7 {[%clk
0:00:54.7]} 44... Qd7 {[%clk 0:00:01.3]} 45. Qxb6 {[%clk 0:00:54.1]} 45... Kg7
{[%clk 0:00:01.1]} 46. Qf6+ {[%clk 0:00:53]} 46... Kg8 {[%clk 0:00:01.2]} 47.
Qd6 {[%clk 0:00:53.7]} 47... Qc8 {[%clk 0:00:01.7]} 48. a5 {[%clk 0:00:52.7]}
48... Kg7 {[%clk 0:00:02.3]} 49. Qf6+ {[%clk 0:00:50.9]} 49... Kg8 {[%clk
0:00:02.4]} 50. a6 {[%clk 0:00:51.8]} 50... Qg4 {[%clk 0:00:02]} 51. Qc6 {[%clk
0:00:50.6]} 51... Qc8 {[%clk 0:00:02]} 52. a7 {[%clk 0:00:50.8]} 52... Kg7
{[%clk 0:00:02.5]} 53. Qf6+ {[%clk 0:00:51.2]} 53... Kg8 {[%clk 0:00:02.1]} 54.
e6 {[%clk 0:00:47.9]} 1-0

[Event "Early-Titled-Tuesday-Blitz-January-30-2024"]
[Site "Chess.com"]
[Date "2024.01.30"]
[Round "4"]
[White "Arimin1329"]
[Black "Makswolf200817"]
[Result "0-1"]
[WhiteElo "2415"]
[BlackElo "2668"]
[TimeControl "180+1"]
[EndTime "8:41:11 PST"]
[Termination "Makswolf200817 won by resignation"]

1. Nf3 {[%clk 0:03:00.9]} 1... d5 {[%clk 0:02:57.3]} 2. g3 {[%clk 0:03:01.8]}
2... Bg4 {[%clk 0:02:53.9]} 3. Bg2 {[%clk 0:03:01.9]} 3... c6 {[%clk 0:02:53.9]}
4. O-O {[%clk 0:03:02.1]} 4... e6 {[%clk 0:02:54.4]} 5. d4 {[%clk 0:02:57.2]}
5... Nf6 {[%clk 0:02:54.2]} 6. c4 {[%clk 0:02:56.5]} 6... Be7 {[%clk 0:02:53.9]}
7. Qb3 {[%clk 0:02:55.5]} 7... Qb6 {[%clk 0:02:50.5]} 8. Qc2 {[%clk 0:02:54.6]}
8... Nbd7 {[%clk 0:02:48.9]} 9. c5 {[%clk 0:02:54.5]} 9... Qa6 {[%clk
0:02:48.4]} 10. Nc3 {[%clk 0:02:47.5]} 10... O-O {[%clk 0:02:47]} 11. b4 {[%clk
0:02:46.9]} 11... b6 {[%clk 0:02:43.5]} 12. Bf4 {[%clk 0:02:23.1]} 12... Qc4
{[%clk 0:02:37]} 13. a3 {[%clk 0:02:07.5]} 13... bxc5 {[%clk 0:02:30.2]} 14.
bxc5 {[%clk 0:01:54.3]} 14... Bxf3 {[%clk 0:02:26.5]} 15. Bxf3 {[%clk
0:01:51.3]} 15... Qxd4 {[%clk 0:02:26.6]} 16. Rac1 {[%clk 0:01:41.7]} 16... Qxc5
{[%clk 0:02:24.2]} 17. Qa4 {[%clk 0:01:37.4]} 17... Nb6 {[%clk 0:02:17.8]} 18.
Qa6 {[%clk 0:01:34.9]} 18... Qxa3 {[%clk 0:02:16.1]} 19. Qb7 {[%clk 0:01:32]}
19... Nc4 {[%clk 0:01:51.9]} 20. Nb1 {[%clk 0:01:19.7]} 20... Qb4 {[%clk
0:01:50.7]} 21. Qxc6 {[%clk 0:01:15.1]} 21... a5 {[%clk 0:01:46.1]} 22. Nc3
{[%clk 0:00:36.8]} 22... Rfc8 {[%clk 0:01:41.9]} 23. Qa4 {[%clk 0:00:35.2]}
23... h6 {[%clk 0:01:31.7]} 24. Qa1 {[%clk 0:00:31.4]} 24... e5 {[%clk
0:01:19.6]} 25. Rb1 {[%clk 0:00:24.7]} 25... Qa3 {[%clk 0:01:02.2]} 26. Qxa3
{[%clk 0:00:20.4]} 26... Nxa3 {[%clk 0:01:01.6]} 27. Bxe5 {[%clk 0:00:20.8]}
27... Nxb1 {[%clk 0:01:01.2]} 28. Rxb1 {[%clk 0:00:21.1]} 28... Ra6 {[%clk
0:00:39]} 29. Rb7 {[%clk 0:00:19.7]} 29... Re6 {[%clk 0:00:37.4]} 30. Bd4 {[%clk
0:00:19.8]} 30... Rc4 {[%clk 0:00:30.6]} 31. e3 {[%clk 0:00:19.3]} 31... a4
{[%clk 0:00:19.6]} 32. Kg2 {[%clk 0:00:19.1]} 32... a3 {[%clk 0:00:19.4]} 33.
Nxd5 {[%clk 0:00:19.2]} 33... Bd8 {[%clk 0:00:10.8]} 34. Rb8 {[%clk 0:00:18]}
34... Rd6 {[%clk 0:00:09.8]} 35. Nxf6+ {[%clk 0:00:17]} 35... gxf6 {[%clk
0:00:10.5]} 36. Bb6 {[%clk 0:00:17.2]} 36... Rxb6 {[%clk 0:00:10.1]} 37. Rxd8+
{[%clk 0:00:17.7]} 37... Kg7 {[%clk 0:00:11]} 38. Be2 {[%clk 0:00:17.4]} 38...
Ra4 {[%clk 0:00:11.1]} 39. Bd1 {[%clk 0:00:16.6]} 39... Ra5 {[%clk 0:00:10.6]}
0-1

[Event "Early-Titled-Tuesday-Blitz-January-30-2024"]
[Site "Chess.com"]
[Date "2024.01.30"]
[Round "4"]
[White "Chessdreamer2020"]
[Black "Nikolakis2014"]
[Result "0-1"]
[WhiteElo "2557"]
[BlackElo "2760"]
[TimeControl "180+1"]
[EndTime "8:41:13 PST"]
[Termination "Nikolakis2014 won by resignation"]

1. d4 {[%clk 0:03:00.8]} 1... d5 {[%clk 0:02:56.4]} 2. Nc3 {[%clk 0:03:01]} 2...
Nf6 {[%clk 0:02:55.2]} 3. Bf4 {[%clk 0:03:01]} 3... c5 {[%clk 0:02:53.9]} 4. e4
{[%clk 0:03:00.2]} 4... Nxe4 {[%clk 0:02:52.9]} 5. Nxe4 {[%clk 0:02:59.9]} 5...
dxe4 {[%clk 0:02:53.1]} 6. d5 {[%clk 0:02:59.8]} 6... Nd7 {[%clk 0:02:47]} 7.
Ne2 {[%clk 0:02:58.3]} 7... Nf6 {[%clk 0:02:45.8]} 8. Nc3 {[%clk 0:02:57.4]}
8... a6 {[%clk 0:02:45.8]} 9. a4 {[%clk 0:02:56.6]} 9... g6 {[%clk 0:02:45.6]}
10. h4 {[%clk 0:02:55.9]} 10... Bg7 {[%clk 0:02:43.6]} 11. Qd2 {[%clk
0:02:54.5]} 11... Bg4 {[%clk 0:02:37.3]} 12. Bc4 {[%clk 0:02:43.8]} 12... O-O
{[%clk 0:02:35]} 13. Bh6 {[%clk 0:02:43.2]} 13... b5 {[%clk 0:02:19.6]} 14. Bxg7
{[%clk 0:02:41.1]} 14... Kxg7 {[%clk 0:02:19.8]} 15. axb5 {[%clk 0:02:14.7]}
15... axb5 {[%clk 0:02:19.7]} 16. Rxa8 {[%clk 0:02:11]} 16... Qxa8 {[%clk
0:02:18.5]} 17. Bxb5 {[%clk 0:02:10.4]} 17... Qa1+ {[%clk 0:02:09.6]} 18. Nd1
{[%clk 0:02:10.4]} 18... e3 {[%clk 0:02:00.6]} 19. fxe3 {[%clk 0:01:39.5]} 19...
Ne4 {[%clk 0:01:58.7]} 20. Qd3 {[%clk 0:01:38.8]} 20... Qxd1+ {[%clk 0:01:17.5]}
21. Qxd1 {[%clk 0:01:37.3]} 21... Bxd1 {[%clk 0:01:17.6]} 22. Bd3 {[%clk
0:01:37.7]} 22... Bxc2 {[%clk 0:01:17.8]} 23. Bxc2 {[%clk 0:01:36.4]} 23... Nd6
{[%clk 0:01:17.9]} 24. b3 {[%clk 0:01:31.1]} 24... Ra8 {[%clk 0:01:16.3]} 25.
Kd2 {[%clk 0:01:30.8]} 25... Ra2 {[%clk 0:01:15.8]} 26. Kc3 {[%clk 0:01:26.7]}
26... Kf6 {[%clk 0:01:06.8]} 27. h5 {[%clk 0:01:22.5]} 27... Ke5 {[%clk
0:01:04.3]} 28. hxg6 {[%clk 0:01:22.3]} 28... hxg6 {[%clk 0:01:04.5]} 29. e4
{[%clk 0:01:18.3]} 29... Nxe4+ {[%clk 0:00:50.6]} 30. Bxe4 {[%clk 0:01:17.4]}
30... Kxe4 {[%clk 0:00:51.3]} 31. Re1+ {[%clk 0:01:17.4]} 31... Kxd5 {[%clk
0:00:51.8]} 32. Rxe7 {[%clk 0:01:17.7]} 32... f5 {[%clk 0:00:52]} 33. g4 {[%clk
0:01:16.2]} 33... f4 {[%clk 0:00:47.9]} 34. g5 {[%clk 0:00:55.8]} 34... Rg2
{[%clk 0:00:45.6]} 35. Rf7 {[%clk 0:00:54.1]} 35... Ke4 {[%clk 0:00:44.1]} 36.
Re7+ {[%clk 0:00:51.4]} 36... Kf5 {[%clk 0:00:37.4]} 37. Kc4 {[%clk 0:00:51.1]}
37... Kxg5 {[%clk 0:00:28.9]} 38. Kxc5 {[%clk 0:00:50]} 38... Kg4 {[%clk
0:00:28.2]} 39. Kd4 {[%clk 0:00:43.9]} 39... Rb2 {[%clk 0:00:27.2]} 40. Kc3
{[%clk 0:00:43.7]} 40... Rb1 {[%clk 0:00:27.4]} 41. Kc2 {[%clk 0:00:43.6]} 41...
Rh1 {[%clk 0:00:26.7]} 42. b4 {[%clk 0:00:43.3]} 42... g5 {[%clk 0:00:27]} 43.
b5 {[%clk 0:00:43.2]} 43... Rh6 {[%clk 0:00:26.7]} 44. Rb7 {[%clk 0:00:42.2]}
44... Kf3 {[%clk 0:00:26.5]} 45. b6 {[%clk 0:00:34.3]} 45... g4 {[%clk
0:00:26.6]} 46. Rb8 {[%clk 0:00:34.9]} 46... g3 {[%clk 0:00:25.4]} 47. b7 {[%clk
0:00:35.5]} 47... Rb6 {[%clk 0:00:25]} 0-1

[Event "Early-Titled-Tuesday-Blitz-January-30-2024"]
[Site "Chess.com"]
[Date "2024.01.30"]
[Round "4"]
[White "NewYearGirl"]
[Black "FM_VS99"]
[Result "0-1"]
[WhiteElo "2365"]
[BlackElo "2553"]
[TimeControl "180+1"]
[EndTime "8:41:13 PST"]
[Termination "FM_VS99 won by resignation"]

1. e4 {[%clk 0:02:58.3]} 1... c5 {[%clk 0:03:00.1]} 2. Nf3 {[%clk 0:02:58.3]}
2... g6 {[%clk 0:03:00.6]} 3. c4 {[%clk 0:02:57.8]} 3... Bg7 {[%clk 0:03:00.9]}
4. d4 {[%clk 0:02:58.4]} 4... cxd4 {[%clk 0:03:01.8]} 5. Nxd4 {[%clk 0:02:59.3]}
5... Nc6 {[%clk 0:03:02.6]} 6. Be3 {[%clk 0:02:59]} 6... Nf6 {[%clk 0:03:02.9]}
7. Nc3 {[%clk 0:02:58.1]} 7... O-O {[%clk 0:03:03.4]} 8. Be2 {[%clk 0:02:57.6]}
8... d6 {[%clk 0:03:03.9]} 9. O-O {[%clk 0:02:57.3]} 9... Bd7 {[%clk 0:03:04.6]}
10. Rc1 {[%clk 0:02:54.5]} 10... Nxd4 {[%clk 0:03:03.8]} 11. Bxd4 {[%clk
0:02:54.5]} 11... Bc6 {[%clk 0:03:04.6]} 12. f3 {[%clk 0:02:51.8]} 12... a5
{[%clk 0:03:04.6]} 13. b3 {[%clk 0:02:51.7]} 13... Nd7 {[%clk 0:03:04.2]} 14.
Bxg7 {[%clk 0:02:51.1]} 14... Kxg7 {[%clk 0:03:05.1]} 15. Qd4+ {[%clk
0:02:45.5]} 15... Kg8 {[%clk 0:03:05.4]} 16. Nd5 {[%clk 0:02:46]} 16... Bxd5
{[%clk 0:02:48]} 17. cxd5 {[%clk 0:02:46.9]} 17... Rc8 {[%clk 0:02:42.1]} 18. f4
{[%clk 0:02:09.2]} 18... Nc5 {[%clk 0:02:05.1]} 19. e5 {[%clk 0:02:04.3]} 19...
Qb6 {[%clk 0:02:04.5]} 20. Rc4 {[%clk 0:02:00]} 20... Nd7 {[%clk 0:01:51.2]} 21.
Qxb6 {[%clk 0:01:43]} 21... Nxb6 {[%clk 0:01:52.1]} 22. Rxc8 {[%clk 0:01:32.4]}
22... Rxc8 {[%clk 0:01:53]} 23. Bf3 {[%clk 0:01:22.6]} 23... Rc2 {[%clk
0:01:47.9]} 24. Rf2 {[%clk 0:01:16.9]} 24... Rc3 {[%clk 0:01:32.9]} 25. Re2
{[%clk 0:01:08]} 25... Kf8 {[%clk 0:01:30.8]} 26. Rd2 {[%clk 0:01:05.7]} 26...
Nd7 {[%clk 0:01:19]} 27. e6 {[%clk 0:01:02.2]} 27... fxe6 {[%clk 0:01:11.2]} 28.
dxe6 {[%clk 0:01:03.1]} 28... Nc5 {[%clk 0:01:11.4]} 29. Bd5 {[%clk 0:00:32.6]}
29... b5 {[%clk 0:01:03.7]} 30. g3 {[%clk 0:00:32]} 30... Kg7 {[%clk 0:00:52.4]}
31. Kf2 {[%clk 0:00:31.2]} 31... Kf6 {[%clk 0:00:50.7]} 32. Re2 {[%clk 0:00:28]}
32... a4 {[%clk 0:00:35.5]} 33. b4 {[%clk 0:00:25.5]} 33... Nd3+ {[%clk
0:00:34.7]} 34. Ke3 {[%clk 0:00:22.1]} 34... Nc1+ {[%clk 0:00:17]} 35. Kd2
{[%clk 0:00:21.9]} 35... Nxe2 {[%clk 0:00:17]} 36. Kxe2 {[%clk 0:00:22.3]} 36...
Rc2+ {[%clk 0:00:16.3]} 37. Kd3 {[%clk 0:00:22.5]} 37... Rxh2 {[%clk 0:00:14.5]}
38. a3 {[%clk 0:00:18.8]} 38... Rh3 {[%clk 0:00:12.7]} 39. Bc6 {[%clk
0:00:17.8]} 39... Rxg3+ {[%clk 0:00:12.8]} 0-1

[Event "Early-Titled-Tuesday-Blitz-January-30-2024"]
[Site "Chess.com"]
[Date "2024.01.30"]
[Round "4"]
[White "WhiteKnight2612"]
[Black "maximnovik"]
[Result "1-0"]
[WhiteElo "2831"]
[BlackElo "2588"]
[TimeControl "180+1"]
[EndTime "8:41:14 PST"]
[Termination "WhiteKnight2612 won on time"]

1. Nf3 {[%clk 0:02:09.3]} 1... Nf6 {[%clk 0:02:59.2]} 2. g3 {[%clk 0:02:10.1]}
2... g6 {[%clk 0:02:59.7]} 3. Bg2 {[%clk 0:02:09]} 3... d5 {[%clk 0:03:00.3]} 4.
O-O {[%clk 0:02:08.9]} 4... Bg7 {[%clk 0:03:00.8]} 5. d3 {[%clk 0:02:09.8]} 5...
O-O {[%clk 0:03:00.7]} 6. Nc3 {[%clk 0:02:10.5]} 6... c5 {[%clk 0:02:59.4]} 7.
e4 {[%clk 0:02:09.8]} 7... e6 {[%clk 0:02:45]} 8. h4 {[%clk 0:01:56.9]} 8... d4
{[%clk 0:02:42.4]} 9. Ne2 {[%clk 0:01:56.5]} 9... Nc6 {[%clk 0:02:42.9]} 10. a4
{[%clk 0:01:55.7]} 10... e5 {[%clk 0:02:42.9]} 11. Nd2 {[%clk 0:01:54.5]} 11...
Rb8 {[%clk 0:02:39.7]} 12. Nc4 {[%clk 0:01:55]} 12... b6 {[%clk 0:02:36.4]} 13.
f4 {[%clk 0:01:55]} 13... Ng4 {[%clk 0:02:35.2]} 14. f5 {[%clk 0:01:50.3]} 14...
Ba6 {[%clk 0:02:20.8]} 15. Bh3 {[%clk 0:01:44]} 15... Nf6 {[%clk 0:02:09.3]} 16.
b3 {[%clk 0:01:41.2]} 16... Bxc4 {[%clk 0:02:05.7]} 17. bxc4 {[%clk 0:01:40.8]}
17... Nd7 {[%clk 0:02:06.1]} 18. Bg5 {[%clk 0:01:36.5]} 18... Bf6 {[%clk
0:02:01]} 19. Bh6 {[%clk 0:01:34.9]} 19... Bg7 {[%clk 0:02:00.7]} 20. Qd2 {[%clk
0:01:33.9]} 20... Bxh6 {[%clk 0:01:40.8]} 21. Qxh6 {[%clk 0:01:31]} 21... Nf6
{[%clk 0:01:40.9]} 22. g4 {[%clk 0:01:24.6]} 22... Kh8 {[%clk 0:01:37.4]} 23.
Qd2 {[%clk 0:01:10.6]} 23... Nd7 {[%clk 0:01:36.8]} 24. g5 {[%clk 0:01:09.9]}
24... f6 {[%clk 0:01:08.3]} 25. fxg6 {[%clk 0:00:57.4]} 25... hxg6 {[%clk
0:01:07.1]} 26. gxf6 {[%clk 0:00:53.2]} 26... Nxf6 {[%clk 0:01:06.1]} 27. Qh6+
{[%clk 0:00:47.1]} 27... Nh7 {[%clk 0:01:05.6]} 28. Ng3 {[%clk 0:00:47.6]} 28...
Qe7 {[%clk 0:00:52.7]} 29. Kh2 {[%clk 0:00:41]} 29... Qg7 {[%clk 0:00:49.6]} 30.
Qd2 {[%clk 0:00:41.2]} 30... Nf6 {[%clk 0:00:45.5]} 31. Rg1 {[%clk 0:00:39.7]}
31... Qh7 {[%clk 0:00:42.6]} 32. Qg5 {[%clk 0:00:38.2]} 32... Rb7 {[%clk
0:00:32.9]} 33. Raf1 {[%clk 0:00:36.5]} 33... Rbf7 {[%clk 0:00:10.2]} 34. Be6
{[%clk 0:00:35.9]} 34... Kg7 {[%clk 0:00:09.4]} 35. Nf5+ {[%clk 0:00:32.8]}
35... Kh8 {[%clk 0:00:09]} 36. Bxf7 {[%clk 0:00:28.5]} 36... Rxf7 {[%clk
0:00:09.2]} 37. Nd6 {[%clk 0:00:28.4]} 37... Rf8 {[%clk 0:00:03.5]} 38. Rxf6
{[%clk 0:00:27.6]} 38... Rxf6 {[%clk 0:00:03.5]} 39. Qxf6+ {[%clk 0:00:24.4]}
1-0

[Event "Early-Titled-Tuesday-Blitz-January-30-2024"]
[Site "Chess.com"]
[Date "2024.01.30"]
[Round "4"]
[White "brm72"]
[Black "LiadCuba"]
[Result "1-0"]
[WhiteElo "2688"]
[BlackElo "2447"]
[TimeControl "180+1"]
[EndTime "8:41:14 PST"]
[Termination "brm72 won on time"]

1. e4 {[%clk 0:03:00.9]} 1... c5 {[%clk 0:02:59.7]} 2. Nf3 {[%clk 0:03:01.2]}
2... d6 {[%clk 0:03:00.1]} 3. d4 {[%clk 0:03:01.6]} 3... cxd4 {[%clk 0:03:01]}
4. Nxd4 {[%clk 0:03:02.5]} 4... Nf6 {[%clk 0:03:01.5]} 5. Nc3 {[%clk 0:03:03.1]}
5... a6 {[%clk 0:03:02]} 6. f3 {[%clk 0:03:03.5]} 6... e5 {[%clk 0:02:57.5]} 7.
Nb3 {[%clk 0:03:03.7]} 7... Be7 {[%clk 0:02:57.7]} 8. Be3 {[%clk 0:03:03.9]}
8... Be6 {[%clk 0:02:58.1]} 9. Qd2 {[%clk 0:03:03]} 9... O-O {[%clk 0:02:58.1]}
10. O-O-O {[%clk 0:03:03.1]} 10... Nbd7 {[%clk 0:02:57]} 11. g4 {[%clk
0:03:00.5]} 11... b5 {[%clk 0:02:57.1]} 12. g5 {[%clk 0:02:59.7]} 12... b4
{[%clk 0:02:57.3]} 13. Ne2 {[%clk 0:02:55.9]} 13... Ne8 {[%clk 0:02:43.8]} 14.
f4 {[%clk 0:02:50]} 14... g6 {[%clk 0:02:36.3]} 15. f5 {[%clk 0:02:37.3]} 15...
gxf5 {[%clk 0:02:37.2]} 16. exf5 {[%clk 0:02:38.2]} 16... Bxf5 {[%clk
0:02:35.6]} 17. Ng3 {[%clk 0:02:33]} 17... Bg6 {[%clk 0:02:31.4]} 18. h4 {[%clk
0:02:31.5]} 18... Rc8 {[%clk 0:02:12.2]} 19. Bd3 {[%clk 0:02:11.7]} 19... Ng7
{[%clk 0:02:05]} 20. Kb1 {[%clk 0:02:01.8]} 20... a5 {[%clk 0:01:55.3]} 21. h5
{[%clk 0:01:58.9]} 21... Bxd3 {[%clk 0:01:55.1]} 22. Qxd3 {[%clk 0:01:59.8]}
22... Bxg5 {[%clk 0:01:47.9]} 23. Bxg5 {[%clk 0:01:29.4]} 23... Qxg5 {[%clk
0:01:48.8]} 24. h6 {[%clk 0:01:15]} 24... Ne6 {[%clk 0:01:43.3]} 25. Rdg1 {[%clk
0:00:59.7]} 25... Kh8 {[%clk 0:01:42.9]} 26. Qxd6 {[%clk 0:00:51.8]} 26... a4
{[%clk 0:01:25.1]} 27. Nc1 {[%clk 0:00:49.7]} 27... b3 {[%clk 0:00:56.4]} 28.
cxb3 {[%clk 0:00:44.3]} 28... Rfd8 {[%clk 0:00:44.9]} 29. bxa4 {[%clk
0:00:22.8]} 29... Ndc5 {[%clk 0:00:40.7]} 30. Qb6 {[%clk 0:00:21.8]} 30... Nxa4
{[%clk 0:00:38.7]} 31. Qb3 {[%clk 0:00:20.5]} 31... Nec5 {[%clk 0:00:32.7]} 32.
Qxf7 {[%clk 0:00:20.5]} 32... Rd2 {[%clk 0:00:23.7]} 33. Nf5 {[%clk 0:00:14.3]}
33... Rxb2+ {[%clk 0:00:15.7]} 34. Ka1 {[%clk 0:00:13.5]} 34... Rxa2+ {[%clk
0:00:16.1]} 35. Nxa2 {[%clk 0:00:08.3]} 35... Nb3+ {[%clk 0:00:08.1]} 36. Qxb3
{[%clk 0:00:08.8]} 36... Qxf5 {[%clk 0:00:07.3]} 37. Qxa4 {[%clk 0:00:09.1]}
37... Qf6 {[%clk 0:00:04.8]} 38. Qb3 {[%clk 0:00:09]} 38... e4+ {[%clk
0:00:04.2]} 39. Qb2 {[%clk 0:00:09.3]} 39... Rf8 {[%clk 0:00:01.8]} 40. Rf1
{[%clk 0:00:07.9]} 1-0

[Event "Early-Titled-Tuesday-Blitz-January-30-2024"]
[Site "Chess.com"]
[Date "2024.01.30"]
[Round "4"]
[White "RichardLeyvaP"]
[Black "djano"]
[Result "1-0"]
[WhiteElo "2521"]
[BlackElo "2698"]
[TimeControl "180+1"]
[EndTime "8:41:16 PST"]
[Termination "RichardLeyvaP won by resignation"]

1. e4 {[%clk 0:02:58.8]} 1... c5 {[%clk 0:02:59.9]} 2. Nf3 {[%clk 0:02:58.6]}
2... Nc6 {[%clk 0:03:00.1]} 3. d4 {[%clk 0:02:58.9]} 3... cxd4 {[%clk 0:03:01]}
4. Nxd4 {[%clk 0:02:59.8]} 4... g6 {[%clk 0:03:00.7]} 5. Be2 {[%clk 0:02:58.7]}
5... Bg7 {[%clk 0:03:00.8]} 6. Nb3 {[%clk 0:02:57.8]} 6... Nf6 {[%clk
0:03:01.1]} 7. Nc3 {[%clk 0:02:58]} 7... O-O {[%clk 0:03:00.9]} 8. O-O {[%clk
0:02:58.2]} 8... d6 {[%clk 0:03:01]} 9. Re1 {[%clk 0:02:57.2]} 9... b6 {[%clk
0:03:00.6]} 10. Bf1 {[%clk 0:02:57.1]} 10... Bb7 {[%clk 0:03:01.2]} 11. Nd5
{[%clk 0:02:57.5]} 11... Nd7 {[%clk 0:03:00.6]} 12. c3 {[%clk 0:02:56.5]} 12...
e6 {[%clk 0:02:56.2]} 13. Ne3 {[%clk 0:02:53]} 13... Nc5 {[%clk 0:02:56]} 14. f3
{[%clk 0:02:50.5]} 14... Qc7 {[%clk 0:02:45.5]} 15. Ng4 {[%clk 0:02:46.4]} 15...
h5 {[%clk 0:02:42.7]} 16. Nf2 {[%clk 0:02:44.6]} 16... Rad8 {[%clk 0:02:40.7]}
17. Bg5 {[%clk 0:02:38.5]} 17... Rd7 {[%clk 0:02:37.1]} 18. Qc1 {[%clk
0:02:26.8]} 18... Kh7 {[%clk 0:02:34.3]} 19. Bf4 {[%clk 0:02:12.5]} 19... Ne5
{[%clk 0:02:32.4]} 20. Nd4 {[%clk 0:02:11.6]} 20... a6 {[%clk 0:02:26.8]} 21.
Qd2 {[%clk 0:01:58.3]} 21... b5 {[%clk 0:02:24]} 22. Rad1 {[%clk 0:01:57.2]}
22... Ba8 {[%clk 0:02:14.2]} 23. Qc1 {[%clk 0:01:56.3]} 23... Qb6 {[%clk
0:02:08.9]} 24. Be3 {[%clk 0:01:54.7]} 24... Qb8 {[%clk 0:02:08.1]} 25. Nb3
{[%clk 0:01:54.5]} 25... Na4 {[%clk 0:01:58.6]} 26. Nd2 {[%clk 0:01:49.1]} 26...
Rc8 {[%clk 0:01:55.7]} 27. Qb1 {[%clk 0:01:48.9]} 27... Nb6 {[%clk 0:01:48.6]}
28. Bd4 {[%clk 0:01:48.1]} 28... Bh6 {[%clk 0:01:45.2]} 29. Be3 {[%clk
0:01:32.6]} 29... Bg7 {[%clk 0:01:45.6]} 30. Bd4 {[%clk 0:01:32.6]} 30... g5
{[%clk 0:01:41.4]} 31. Nb3 {[%clk 0:01:29.1]} 31... Nbc4 {[%clk 0:01:35.6]} 32.
Nd2 {[%clk 0:01:29.1]} 32... Bh6 {[%clk 0:01:28.1]} 33. Nd3 {[%clk 0:01:23.9]}
33... g4 {[%clk 0:01:20.8]} 34. Nxc4 {[%clk 0:01:23.7]} 34... Nxc4 {[%clk
0:01:21.1]} 35. fxg4 {[%clk 0:01:04.2]} 35... e5 {[%clk 0:01:18.3]} 36. Bf2
{[%clk 0:00:56.2]} 36... hxg4 {[%clk 0:01:17.8]} 37. b3 {[%clk 0:00:55.2]} 37...
Nd2 {[%clk 0:01:15.9]} 38. Qb2 {[%clk 0:00:49.3]} 38... Nxe4 {[%clk 0:01:15.5]}
39. Nxe5 {[%clk 0:00:49.5]} 39... Nxf2 {[%clk 0:01:13.6]} 40. Qxf2 {[%clk
0:00:45.7]} 40... Re7 {[%clk 0:00:47.9]} 41. Qf5+ {[%clk 0:00:41.1]} 41... Kg8
{[%clk 0:00:47.6]} 42. Nxg4 {[%clk 0:00:40.9]} 42... Qa7+ {[%clk 0:00:41.9]} 43.
Kh1 {[%clk 0:00:40.1]} 43... Rxe1 {[%clk 0:00:41.9]} 44. Nxh6+ {[%clk
0:00:39.6]} 44... Kg7 {[%clk 0:00:41.7]} 45. Rxe1 {[%clk 0:00:29.3]} 45... Kxh6
{[%clk 0:00:42.1]} 46. Qf6+ {[%clk 0:00:29.3]} 46... Kh7 {[%clk 0:00:38.2]} 47.
Bd3+ {[%clk 0:00:29.1]} 47... Kg8 {[%clk 0:00:38.4]} 48. Qg5+ {[%clk 0:00:21.3]}
48... Kf8 {[%clk 0:00:31.8]} 49. Qh6+ {[%clk 0:00:15.4]} 1-0